Cogmind - Beta 14 @@@ ROGUE MODE // 2024.10.21 @ 08:50:37 Player: Tereza Result: Destroyed by S-27 Virus with Autogun Performance ------------- Evolutions (3) 1500 Regions Visited (4) 800 Robots Destroyed (45) 225 Value Destroyed (1449) 1449 Prototype IDs (0) 0 Alien Tech Used (0) 0 Bonus (0) 0 TOTAL SCORE: 3974 Bonus ------- None Cogmind --------- Core Integrity 0/700 Matter 287/300 Energy 99/100 System Corruption 0% Temperature Cool (0) Movement Core (50) Location -7/Factory Parts ------- > --- POWER (1) -------- (None) > --- PROPULSION (3) --- (None) > --- UTILITY (7) ------ Improved Cooling System Improved Signal Interpreter Improved Targeting Computer Armor Integrity Analyzer > --- WEAPON (2) ------- (None) > --- INVENTORY (5) ---- Light Nuclear Core Sensor Array Gauss Rifle Gauss Cannon Katana Peak State ------------ > --- POWER ------------ Micro Nuclear Core > --- PROPULSION ------- Improved Hover Unit Improved Hover Unit Improved Hover Unit > --- UTILITY ---------- Improved Heat Sink Improved Cooling System Improved Sensor Array Improved Signal Interpreter Terrain Scanner Improved Targeting Computer Armor Integrity Analyzer > --- WEAPON ----------- Particle Gun Gauss Cannon > --- INVENTORY -------- Light Nuclear Core Improved Hover Unit Sensor Array Gauss Rifle Katana [Rating: 37] Favorites ----------- Power Ion Engine Engine Ion Engine Power Core Light Nuclear Core Propulsion Light Treads Treads Light Treads Wheel Armored Huge Wheel Hover Unit Improved Hover Unit Utility Improved Targeting Computer Device Improved Heat Sink Storage Medium Storage Unit Processor Improved Targeting Computer Protection Hardened Light Armor Plating Weapon Particle Gun Energy Gun Particle Gun Ballistic Gun Autogun Ballistic Cannon Improved Light Cannon Slashing Weapon Katana Build | -11 -10 -9 -8 -7 ------- Run | Yrd Mat Mat Mat Fac Slots Evolved 6 | . . 2 2 2 Power . | . . . . . Propulsion 1 | . . . . 1 Utility 5 | . . 2 2 1 Weapon . | . . . . . Parts Attached 52 | 6 3 12 17 14 Power 7 | 1 . 3 2 1 Engine 5 | 1 . 3 1 . Core 2 | . . . 1 1 Reactor . | . . . . . Propulsion 10 | 2 . 2 2 4 Treads 4 | 2 . 2 . . Leg . | . . . . . Wheel 2 | . . . 2 . Hover 4 | . . . . 4 Flight . | . . . . . Utility 22 | 1 2 5 8 6 Device 7 | . . 1 2 4 Storage 3 | 1 1 . 1 . Processor 6 | . 1 2 1 2 Hackware . | . . . . . Protection 6 | . . 2 4 . Artifact . | . . . . . Weapon 13 | 2 1 2 5 3 Energy Gun 5 | . 1 1 2 1 Energy Cannon . | . . . . . Ballistic Gun 5 | 2 . 1 2 . Ballistic Cannon 2 | . . . 1 1 Launcher . | . . . . . Special Weapon . | . . . . . Impact Weapon . | . . . . . Slashing Weapon 1 | . . . . 1 Piercing Weapon . | . . . . . Special Melee Weapon . | . . . . . Unidentified Prototypes . | . . . . . Parts Lost 19 | . . 2 9 8 Power 2 | . . 1 1 . Propulsion 5 | . . . 1 4 Utility 8 | . . 1 4 3 Weapon 4 | . . . 3 1 Highest Loss Streak 5 | . . 1 3 5 To Critical Strikes . | . . . . . Average Slot Usage (%) 86 | . 98 99 76 78 Engine 7 | . 14 10 4 3 Treads 10 | . 28 22 1 . Wheel 3 | . . . 8 . Hover 1 | . . . . 15 Device 5 | . . 3 3 25 Storage 9 | . 14 11 9 . Processor 23 | . 13 24 25 22 Protection 4 | . . 5 6 . Energy Gun 6 | . 4 11 4 4 Ballistic Gun 9 | . 23 11 8 . Ballistic Cannon 2 | . . . 4 3 Peak Build Rating 37 | 6 10 15 35 37 Average Rating 21 | 4 9 13 28 28 On Entrance 12 | . 6 10 15 31 Naked Turns . | . . . . . Heaviest Build 100 | 12 18 24 100 22 Greatest Support 40 | 40 40 40 40 21 Greatest Overweight (x) 3 | . . . 3 1 Average Overweight (x) . | . . . 2 . Largest Inventory Capacity 25 | 8 10 10 25 25 Average Capacity 15 | 7 9 10 23 5 Most Carried 25 | 6 10 10 25 24 Average Carried 14 | 4 9 9 22 5 Final Capacity 25 | 8 10 10 25 5 Final Carried 24 | 6 10 10 24 5 Class Distribution -------------------- 93% | Mutant 3% | Scavenger-Scout Dominant Class ---------------- Mutant | -10/Materials Mutant | -9/Materials Mutant | -8/Materials Mutant | -7/Factory Resources | -11 -10 -9 -8 -7 ----------- Run | Yrd Mat Mat Mat Fac Matter Collected 1223 | 206 32 348 550 87 Remotely . | . . . . . Salvage Created 1495 | . 40 722 733 . Parts 74 | . 2 33 39 . Haulers Intercepted . | . . . . . Recyclers Shooed 2 | . 1 1 . . Parts Field Recycled . | . . . . . Retrieved Matter . | . . . . . Parts Self-Destructed . | . . . . . Prevented . | . . . . . Kills | -11 -10 -9 -8 -7 ------- Run | Yrd Mat Mat Mat Fac Combat Hostiles Destroyed 40 | . 3 16 21 . Guns 35 | . 3 16 16 . Cannons 5 | . . . 5 . Classes Destroyed 10 | . 1 4 5 . Worker 1 | . . . 1 . Builder 1 | . . . 1 . Watcher 3 | . . 1 2 . Swarmer 10 | . 3 . 7 . Grunt 18 | . . 11 7 . Brawler 1 | . . . 1 . Duelist 2 | . . 1 1 . Sentry 7 | . . 4 3 . Hunter 1 | . . . 1 . Heavy 1 | . . . 1 . Best Kill Streak 5 | . 3 4 5 . Combat Bots Only 4 | . 3 4 4 . Max Kills in Single Turn 2 | . 1 2 1 . Gunslinging 1 | . . 1 . . Exploded . | . . . . . Melee . | . . . . . Uniques/NPCs Destroyed . | . . . . . Combat | -11 -10 -9 -8 -7 -------- Run | Yrd Mat Mat Mat Fac Hostile Shots Fired 291 | . 28 65 130 68 Missed 70 | . 7 15 27 21 Damage Taken 3514 | . 195 752 1475 1092 Core 1092 | . 35 174 168 715 Absorbed by Shields . | . . . . . Redirected to Shielding 6 | . . 6 . . Ignored by Resistances 38 | . . . 38 . Core Remaining (%) 77 | 100 86 56 69 . Volleys Fired 134 | . 11 53 70 . Largest 2 | . 2 2 2 . Hottest 103 | . 85 88 103 . Shots Fired 261 | . 22 106 133 . Gun 225 | . 22 106 97 . Cannon 36 | . . . 36 . Launcher . | . . . . . Special . | . . . . . Kinetic 170 | . 18 53 99 . Thermal 91 | . 4 53 34 . Explosive . | . . . . . Electromagnetic . | . . . . . Robot Hit Streak 26 | . 3 26 23 . Robot Miss Streak 5 | . 2 5 3 . Penetration Max . | . . . . . Secondary Targets 4 | . . 2 2 . Max Gunslinging Chain 1 | . . 1 1 . Shots Hit Robots 205 | . 9 89 106 1 Core Hits 79 | . 3 28 48 . Critical Kills . | . . . . . Critical Parts Destroyed . | . . . . . Critical Strikes 5 | . 1 2 1 1 Burn 3 | . 1 2 . . Blast 1 | . . . 1 . Sever 1 | . . . . 1 Melee Attacks 3 | . . . . 3 Impact . | . . . . . Slashing 3 | . . . . 3 Piercing . | . . . . . Sneak Attacks . | . . . . . Combat Hostiles . | . . . . . Follow-up Attacks . | . . . . . Damage Inflicted 3602 | . 134 1371 2063 34 Guns 3033 | . 134 1371 1528 . Cannons 535 | . . . 535 . Explosions . | . . . . . Melee 34 | . . . . 34 Ramming . | . . . . . Kinetic 1967 | . 92 619 1256 . Thermal 1601 | . 42 752 807 . Explosive . | . . . . . Electromagnetic . | . . . . . Impact . | . . . . . Slashing 34 | . . . . 34 Piercing . | . . . . . Highest Corruption . | . . . . . Average Corruption . | . . . . . Corruption Purged . | . . . . . Corruption Blocked . | . . . . . Overload Shots . | . . . . . Overflow Damage . | . . . . . Projectiles . | . . . . . Explosions . | . . . . . Melee . | . . . . . Knockbacks 4 | . . . 4 . Impact . | . . . . . Kinetic 4 | . . . 4 . Secondary . | . . . . . Self-Inflicted Damage . | . . . . . Shots . | . . . . . Rammed . | . . . . . Targets Rammed . | . . . . . Kicked . | . . . . . Crushed . | . . . . . Highest Temperature 287 | . 96 287 231 . Average Temperature 89 | . 48 103 71 . Received Heat Transfer 819 | . . 249 441 129 Effects 1 | . . . 1 . Energy Bleed 1 | . . . 1 . Siege Activations . | . . . . . Robots Corrupted . | . . . . . Combat Hostiles . | . . . . . Parts Fried . | . . . . . Impact Corruptions . | . . . . . Robots Melted . | . . . . . Combat Hostiles . | . . . . . Parts Melted 12 | . . 4 8 . Heat Transferred 3959 | . 185 1924 1850 . Parts Sabotaged . | . . . . . Parts Stolen . | . . . . . Parts Stripped . | . . . . . Power Chain Reactions . | . . . . . Alert | -11 -10 -9 -8 -7 ------- Run | Yrd Mat Mat Mat Fac Peak Influence 370 | . 155 370 288 217 Initial 130 | . . 65 53 130 Average 138 | . 56 184 133 142 Maximum Alert Level 1 | . . 1 1 1 Low Security (%) 80 | 100 100 62 84 91 Level 1 19 | . . 37 15 8 Level 2 . | . . . . . Level 3 . | . . . . . Level 4 . | . . . . . Level 5 . | . . . . . High Security . | . . . . . Max Security . | . . . . . Squads Dispatched 8 | . . 1 7 . Investigation 1 | . . . 1 . Extermination . | . . . . . Reinforcement 5 | . . 1 4 . Assault . | . . . . . Garrison 2 | . . . 2 . Intercept . | . . . . . Searches Triggered . | . . . . . Construction Impeded . | . . . . . Haulers Reinforced . | . . . . . Active Scanning Responses . | . . . . . Cargo Convoy Interrupts . | . . . . . Stealth | -11 -10 -9 -8 -7 --------- Run | Yrd Mat Mat Mat Fac Distress Signals 5 | . . 2 1 2 Communications Jammed . | . . . . . Distress Signals . | . . . . . Times Spotted 82 | . 7 24 34 17 Peak Tracking Total 10 | . 4 6 6 10 Tactical Retreats 13 | . 1 4 4 4 Traps | -11 -10 -9 -8 -7 ------- Run | Yrd Mat Mat Mat Fac Traps Triggered 3 | . 1 . 1 1 Indirectly . | . . . . . Trap Hack Attempts . | . . . . . Triggered . | . . . . . Disarmed . | . . . . . Reprogrammed . | . . . . . Reused . | . . . . . Traps Extracted . | . . . . . Installed . | . . . . . Triggered . | . . . . . Machines | -11 -10 -9 -8 -7 ---------- Run | Yrd Mat Mat Mat Fac Machines Disabled . | . . . . . Max in Single Turn . | . . . . . Machines Repaired . | . . . . . Machines Dismantled . | . . . . . Machines Sabotaged . | . . . . . Overloaded Fab Kills . | . . . . . Hacking | -11 -10 -9 -8 -7 --------- Run | Yrd Mat Mat Mat Fac Machines Accessed 13 | . 3 5 3 2 Terminals 12 | . 3 5 3 1 Fabricators 1 | . . . . 1 Repair Stations . | . . . . . Recycling Units . | . . . . . Scanalyzers . | . . . . . Garrison Access . | . . . . . Total Hacks 30 | . 6 13 6 5 Successful 15 | . 4 6 2 3 Failed 15 | . 2 7 4 2 Catastrophic . | . . . . . Database Lockouts . | . . . . . Manual 21 | . 6 11 1 3 Terminals 29 | . 6 13 6 4 Fabricators 1 | . . . . 1 Repair Stations . | . . . . . Recycling Units . | . . . . . Scanalyzers . | . . . . . Garrison Access . | . . . . . Terminal Hacks 6 | . . 3 2 1 Robot Analysis 2 | . . 1 . 1 Alert Level 1 | . . 1 . . Unreport Threat 1 | . . 1 . . Recall Reinforcements 1 | . . . 1 . Hauler Manifests 1 | . . . 1 . Fabricator Hacks . | . . . . . Repair Station Hacks . | . . . . . Recycling Unit Hacks . | . . . . . Scanalyzer . | . . . . . Garrison Access Hacks . | . . . . . Unauthorized Hacks 9 | . 4 3 . 2 Terminals 9 | . 4 3 . 2 Track 4 | . 1 2 . 1 Botnet 5 | . 3 1 . 1 Fabricators . | . . . . . Repair Stations . | . . . . . Recycling Units . | . . . . . Scanalyzers . | . . . . . Garrison Access . | . . . . . Data Cores Recovered . | . . . . . Used . | . . . . . Hacking Detections 10 | . 1 4 3 2 Full Trace Events . | . . . . . Feedback Events . | . . . . . Feedback Blocked . | . . . . . Robot Schematics Acquired . | . . . . . Robots Built . | . . . . . Authchips . | . . . . . Time . | . . . . . Total Robot Build Rating . | . . . . . Part Schematics Acquired . | . . . . . Parts Built . | . . . . . Authchips . | . . . . . Time . | . . . . . Total Part Build Rating . | . . . . . Parts Repaired . | . . . . . Time . | . . . . . Parts Recycled . | . . . . . Recycled Matter . | . . . . . Retrieved Matter . | . . . . . Retrieved Components . | . . . . . Parts Scanalyzed . | . . . . . Part Schematics Acquired . | . . . . . Parts Damaged . | . . . . . Bothacking | -11 -10 -9 -8 -7 ------------ Run | Yrd Mat Mat Mat Fac Used RIF Installer . | . . . . . Robots Hacked . | . . . . . Non-combat . | . . . . . Combat . | . . . . . Robot Hacks Applied . | . . . . . Relay Couplers Released . | . . . . . Fabnet Peak Effective % . | . . . . . Robots Rewired . | . . . . . Allies Hacked . | . . . . . Hacks Repelled . | . . . . . Allies | -11 -10 -9 -8 -7 -------- Run | Yrd Mat Mat Mat Fac Total Allies . | . . . . . Largest Group . | . . . . . Highest-Rated Group . | . . . . . Highest-Rated Ally . | . . . . . Total Orders . | . . . . . Ally Attacks . | . . . . . Total Damage . | . . . . . Kills . | . . . . . Allies Corrupted . | . . . . . Allies Melted . | . . . . . Intel | -11 -10 -9 -8 -7 ------- Run | Yrd Mat Mat Mat Fac Robot Analysis Total 2 | . . 1 . 1 Derelict Logs Recovered . | . . . . . Drone Launches . | . . . . . Drone Recoveries . | . . . . . Exploration | -11 -10 -9 -8 -7 ------------- Run | Yrd Mat Mat Mat Fac Turns Passed 2569 | 72 278 826 1095 298 Spaces Moved 1317 | 38 143 380 405 351 Core 43 | 3 . . . 40 Treads 603 | 35 143 380 45 . Legs . | . . . . . Wheels 360 | . . . 360 . Hover 311 | . . . . 311 Flight . | . . . . . Fastest Speed 50 | 50 160 160 100 50 Average Speed 132 | 151 160 160 146 73 Slowest Speed 160 | 160 160 160 160 120 Overloaded Moves . | . . . . . Propulsion Burnouts . | . . . . . Robots Hopped . | . . . . . Cave-ins Triggered . | . . . . . Exploration Rate (%) 23 | 4 30 35 35 13 Regions Visited 4 Branch Regions . Pre-discovered Areas . | . . . . . Known Exits Taken . | . . . . . Unknown Exits Taken 4 | 1 1 1 1 . Scrap Searched . | . . . . . Spaces Dug . | . . . . . Terrain Destroyed 2 | . . . 2 . Melee . | . . . . . Projectile 2 | . . . 2 . AOE . | . . . . . Terrain Rammed . | . . . . . Walls Destroyed . | . . . . . Machines Disabled . | . . . . . Actions | -11 -10 -9 -8 -7 --------- Run | Yrd Mat Mat Mat Fac Total 1893 | 50 172 508 772 391 Wait 299 | 1 5 43 246 4 Move 1313 | 37 142 379 404 351 Hop . | . . . . . Pick Up 51 | 6 7 9 23 6 Fast Attach 16 | 6 1 1 6 2 Attach 19 | . . 4 7 8 Detach 4 | . . . 1 3 Swap 17 | . 2 7 4 4 Drop 37 | . 4 12 11 10 Fire 134 | . 11 53 70 . Melee 3 | . . . . 3 Ram . | . . . . . Kick . | . . . . . Crush . | . . . . . Escape Stasis . | . . . . . Rewire . | . . . . . Trap . | . . . . . Miscellaneous . | . . . . . Route ------- -11/Scrapyard -10/Materials -9/Materials -8/Materials -7/Factory History --------- Turn | Location | Event 34 | -11/Scrapyard | Discovered new exit (range 16) 73 | -11/Scrapyard | Entered Materials 302 | -10/Materials | Build established: Mutant 335 | -10/Materials | Discovered new exit (range 3) 351 | -10/Materials | Entered another Materials area 351 | -9/Materials | Evolved 2 slots: Utility x2 1131 | -9/Materials | Discovered new exit (range 4) 1177 | -9/Materials | Entered another Materials area 1177 | -8/Materials | Evolved 2 slots: Utility x2 1723 | -8/Materials | Lost 3 parts (1p2u) 2098 | -8/Materials | Garrison activated, responded to threat 2127 | -8/Materials | Lost 3 parts (2u1w) 2254 | -8/Materials | Discovered new exit (range 12) 2272 | -8/Materials | Entered Factory 2272 | -7/Factory | Evolved 2 slots: Propulsion x1, Utility x1 2471 | -7/Factory | Lost 5 parts (3n1u1w) 2536 | -7/Factory | Core integrity fell below 50% 2554 | -7/Factory | Core integrity fell below 20% 2570 | -7/Factory | Destroyed by S-27 Virus with Autogun Last Messages --------------- 02440_ Imp. Hover Unit destroyed. 02440_ Terrain Scanner destroyed. 02440_ Particle Gun destroyed. 02440_ Fusion Modulator explodes. 02440_ Fabricator disabled. 02471_ ALERT: All DSF locations entering lockdown mode. 02477_ Critical hit (Burn: +37). 02479_ Dropped Mic. Nuclear Core. 02511_ Critical hit (Burn: +37). 02512_ W-25 Informer sends out distress signal. 02512_ Acquired 87 matter. 02530_ Imp. Hover Unit destroyed. 02534_ S-27 Virus Lgt. Nuclear Core severed. 02536_ Imp. Sensor Array destroyed. 02541_ K-01 Serf cleans the Nuclear Reactor. 02559_ K-01 Serf collects debris. 02567_ Imp. Heat Sink destroyed. 02568_ K-01 Serf collects debris. Map ----- +----------------------------------------------------+ | ?????????????????????????????????????????????????? | | ?????????????????????????????????????????????????? | | ?????????????????????????????????????????????????? | | ?????????????????????????????????????????????????? | | ?????????????????????????????????????????????????? | | ?????????????????????????????????????????????????? | | ?????????????????????????????????????????????????? | | ?????????????????????????????????????????????????? | | ?????????????????????????????????????????????????? | | ?????????????????????????????????????????????????? | | ????????????????????????? ???????????????????????? | | ????????????????????????? ???????????????????????? | | ??#?????????????????????? ???????????????????????? | | ?? #???????????????????? ???????????????????????? | | ?? +???????????????????? ???????????????????????? | | ? #???????????????????? ???????????????????????? | | ?= #???????????????????? ???????????????????????? | | ? #???????????????????# #??????????????????????? | | ? #???#?????????????### ###????????????????????? | | ? #? ##+#??????????#= ! #????????????????????? | | ? ?? ??????????? ?????????????????????? | | ? ?? ???????????? Y ?????????????????????? | | #/### ?????????????? ??????????????????????? | | #??????????????? ??????????????????????? | | #???????????#####/########???????????????? | | ^ """ #???????????# @ #???????????????? | | """ #???????????# k #???????????????? | | """ #???????????# kk #???????????????? | | "" #???????????# #???????????????? | | "" #???????????# #???????????????? | | #???????????# #???????????????? | | !!! ! #???????????# #???????????????? | | !!! ############# #???????????????? | | !! # ] ## #???????????????? | | # ## s #???????????????? | | ! # """ """ ## g #???????????????? | | # """ """ ## s #???????????????? | | # """ """ ###s######s####???????????????? | | ###### # / g ????????????? | | ?????# # """ """ # ????????????? | | ?????# + """ """ + ????????????? | | ?????# ## """ """ # ?????????????? | | ?????# ## # ????????????? | | ?????#*## """ """ ###+#######+######+???????????? | | ????? # """ """ #?????????????????????????????? | | ????? T # """ """ #?????????????????????????????? | | ????# # ??????????????????????????????? | | ????##+## ??????????????????????????????? | | ????????#######??##??????????????????????????????? | | ?????????????????????????????????????????????????? | +----------------------------------------------------+ Best States ------------- Heat Dissipation 75 Energy Generation 15 Energy Capacity 265 Matter Stores 300 Matter Capacity 300 Sight Range 16 Robot Scan Range 15 Terrain Scan Range 14 Terrain Scan Density 10 Armor Coverage 375 Resistance: TH 10 Core Shielding 20 Evasion (%) 54 Targeting Accuracy 18 Armor Integrity Analysis 30 Recoil Reduction 2 Item Schematics ----------------- None Robot Schematics ------------------ None Fabricated ------------ Nothing Alien Tech Used ----------------- None Achievements -------------- None Challenges ------------ None Game ------ Seed SalvagingAutogunSource Manual? 0 Play Time 00:21:17 Cumulative 80.6 hours Start 2024.10.21 @ 08:26:36 End 2024.10.21 @ 08:50:37 Sessions 1 Manual Loads 0 Difficulty Rogue Special Mode None Game No. 99 Rogue 99 Adventurer 0 Explorer 0 Win Type - Total 0 Types 0/0/0/0/0/0/0/0/0 Lore% 54 Gallery% 45 Achievement% 37 Wizard Run 0 Options --------- Layout 1 ASCII 0 Keyboard 1 Movement Numpad Keybinds 0 Fullscreen 1 Font 24/Smallcaps Map View 50x35 Zoom Use 0% Tactical HUD 1 Map Filters NONE Filters NONE Steam 1 RUN: b91d98fe-3a2b-4e8b-a5df-f8686e151f73